fUST/lending_fUST_20250101
["ID","MTS","AMOUNT","RATE_DAILY","PERIOD"]
[347353825,1735725054399,-2771.02,0.00019178,2]
[347353826,1735725054409,-500.0,0.00019178,2]
[347353827,1735725054418,-500.0,0.00019178,2]
[347353828,1735725054428,-500.0,0.00019178,2]
[347353829,1735725054437,-500.0,0.00019178,2]
[347353830,1735725054446,-500.0,0.00019178,2]
[347353831,1735725054456,-500.0,0.00019178,2]
[347353832,1735725054465,-500.0,0.00019178,2]
[347353833,1735725054474,-502.05394083,0.00019178,2]
[347353834,1735725054483,-500.0,0.00019178,2]
[347353835,1735725054492,-500.0,0.00019178,2]
[347353836,1735725054501,-500.0,0.00019178,2]
[347353837,1735725054511,-572.91640191,0.00019178,2]
[347353838,1735725054521,-500.0,0.00019178,2]
[347353839,1735725054530,-151.0,0.00019178,2]
[347353840,1735725054539,-500.0,0.00019178,2]
[347353841,1735725054548,-500.0,0.00019178,2]
[347353842,1735725054557,-500.0,0.00019178,2]
[347353843,1735725054566,-500.0,0.00019178,2]
[347353844,1735725054575,-151.0,0.00019178,2]
[347353845,1735725054584,-500.0,0.00019178,2]
[347353846,1735725054593,-500.0,0.00019178,2]
[347353847,1735725054602,-501.10789209,0.00019178,2]
[347353848,1735725054611,-500.0,0.00019178,2]
[347353849,1735725054620,-500.0,0.00019178,2]
[347353850,1735725054629,-505.63908535,0.00019178,2]
[347353851,1735725054639,-500.0,0.00019178,2]
[347353852,1735725054648,-501.22159346,0.00019178,2]
[347353853,1735725054658,-1748.46,0.00019178,2]
[347353854,1735725054667,-500.0,0.00019178,2]
[347353855,1735725054676,-500.77980982,0.00019178,2]
[347353856,1735725054687,-329.04345223,0.00019178,2]
[347353857,1735725054696,-170.908382,0.00019178,2]
[347353858,1735725054705,-185.80231,0.00019178,2]
[347353859,1735725054715,-153.0,0.0001925,2]
[347353860,1735725054724,-153.0,0.0001925,2]
[347353861,1735725054733,-153.0,0.0001925,2]
[347353862,1735725054743,-153.0,0.0001925,2]
[347353864,1735725054752,-153.0,0.0001925,2]
[347353866,1735725054761,-153.0,0.0001925,2]
[347353867,1735725054770,-153.0,0.0001925,2]
[347353869,1735725054779,-153.0,0.0001925,2]
[347353871,1735725054788,-153.0,0.0001925,2]
[347353873,1735725054797,-153.0,0.0001925,2]
[347353875,1735725054806,-153.0,0.0001925,2]
[347353877,1735725054815,-153.0,0.0001925,2]
[347353879,1735725054824,-153.0,0.0001925,2]
[347353881,1735725054833,-153.0,0.0001925,2]
[347353883,1735725054842,-153.0,0.0001925,2]
[347353885,1735725054851,-153.0,0.0001925,2]
[347353887,1735725054861,-153.0,0.0001925,2]
[347353889,1735725054869,-153.0,0.0001925,2]
[347353891,1735725054879,-152.07935229,0.00019269,2]
[347353893,1735725054888,-157.0,0.00019341,2]
[347353895,1735725054897,-1200.0,0.00019352,2]
[347353897,1735725054907,-659.344,0.00019352,2]
[347353899,1735725054916,-292.203,0.00019352,2]
[347353901,1735725054925,-4579.30694566,0.00019366,2]
[347353903,1735725054934,-431.0,0.0001938,2]
[347353905,1735725054943,-10998.49,0.00019452,3]
[347353907,1735725054952,-1718.89,0.00019452,3]
[347353909,1735725054961,-500.0,0.00019452,3]
[347353911,1735725054972,-628.08,0.00019452,3]
[347353913,1735725054982,-500.0,0.00019452,3]
[347353915,1735725054991,-500.0,0.00019452,3]
[347353917,1735725055000,-500.0,0.00019452,3]
[347353919,1735725055009,-500.0,0.00019452,3]
[347353921,1735725055018,-500.0,0.00019452,3]
[347353923,1735725055027,-500.0,0.00019452,3]
[347353925,1735725055036,-503.22803559,0.00019452,3]
[347353927,1735725055045,-507.87619297,0.00019452,3]
[347353928,1735725055055,-500.0,0.00019452,3]
[347353930,1735725055064,-175.56917762,0.00019452,3]
[347353932,1735725055073,-500.0,0.00019452,3]
[347353934,1735725055082,-500.0,0.00019452,3]
[347353936,1735725055092,-500.0,0.00019452,3]
[347353938,1735725055101,-500.0,0.00019452,3]
[347353940,1735725055110,-185.79293664,0.00019452,3]
[347353942,1735725055119,-500.69909084,0.00019452,3]
[347353944,1735725055129,-500.0,0.00019452,3]
[347353946,1735725055138,-502.44992705,0.00019452,3]
[347353948,1735725055148,-500.0,0.00019452,3]
[347353950,1735725055158,-500.0,0.00019452,3]
[347353952,1735725055167,-500.0,0.00019452,3]
[347353954,1735725055176,-500.0,0.00019452,3]
[347353956,1735725055185,-502.04092753,0.00019452,3]
[347353958,1735725055195,-500.0,0.00019452,3]
[347353960,1735725055204,-500.0,0.00019452,3]
[347353962,1735725055212,-500.0,0.00019452,3]
[347353964,1735725055221,-588.37,0.00019452,3]
[347353966,1735725055230,-500.0,0.00019452,3]
[347353968,1735725055239,-503.37077422,0.00019452,3]
[347353970,1735725055248,-500.0,0.00019452,3]
[347353972,1735725055257,-501.56345881,0.00019452,3]
[347353973,1735725055266,-526.10799706,0.00019452,3]
[347353975,1735725055275,-500.0,0.00019452,3]
[347353977,1735725055284,-500.0,0.00019452,3]
[347353979,1735725055293,-503.12888777,0.00019452,3]
[347353981,1735725055302,-500.0,0.00019452,3]
[347353983,1735725055311,-500.0,0.00019452,3]
[347353985,1735725055321,-501.56261308,0.00019452,3]
[347353987,1735725055330,-500.0,0.00019452,3]
[347353989,1735725055339,-500.0,0.00019452,3]
[347353991,1735725055349,-502.5747291,0.00019452,3]
[347353993,1735725055358,-308.77437034,0.00019452,3]
[347353995,1735725055367,-169.54927642,0.00019452,3]
[347353997,1735725055377,-603.03,0.00019452,3]
[347353999,1735725055386,-557.01,0.00019452,3]
[347354001,1735725055395,-500.0,0.00019452,3]
[347354002,1735725055405,-2795.09,0.00019452,2]
[347354004,1735725055414,-500.0,0.00019452,3]
[347354006,1735725055423,-861.34,0.00019452,2]
[347354019,1735725055531,-507.22171904,0.00019452,3]
[347354021,1735725055541,-500.0,0.00019452,3]
[347354023,1735725055550,-500.0,0.00019452,3]
[347354024,1735725055559,-501.89999511,0.00019452,3]
[347354026,1735725055569,-500.0,0.00019452,3]
[347354028,1735725055578,-500.0,0.00019452,3]
[347354030,1735725055588,-500.0,0.00019452,3]
[347354032,1735725055597,-500.0,0.00019452,3]
[347354034,1735725055607,-500.0,0.00019452,3]
[347354036,1735725055616,-801.22,0.00019452,3]
[347354038,1735725055625,-3079.18,0.00019452,3]
[347354040,1735725055635,-500.0,0.00019452,3]
[347354042,1735725055644,-500.0,0.00019452,3]
[347354044,1735725055655,-500.0,0.00019452,3]
[347354046,1735725055665,-250.00318907,0.00019452,3]
[347354048,1735725055674,-500.0,0.00019452,3]
[347354050,1735725055683,-500.0,0.00019452,3]
[347354052,1735725055693,-500.0,0.00019452,3]
[347354054,1735725055704,-500.0,0.00019452,3]
[347354056,1735725055714,-500.0,0.00019452,3]
[347354058,1735725055723,-500.0,0.00019452,3]
[347354060,1735725055733,-500.0,0.00019452,3]
[347354062,1735725055742,-500.0,0.00019452,3]
[347354064,1735725055751,-500.0,0.00019452,3]
[347354066,1735725055760,-500.0,0.00019452,3]
[347354068,1735725055769,-151.0,0.00019452,2]
[347354070,1735725055780,-151.0,0.00019452,2]
[347354071,1735725055789,-12170.76,0.00019452,3]
[347354073,1735725055799,-287.615158,0.00019452,2]
[347354075,1735725055808,-151.0,0.00019452,2]
[347354077,1735725055817,-213.673264,0.00019452,2]
[347354079,1735725055826,-170.32892116,0.00019452,3]
[347354081,1735725055835,-500.0,0.00019452,3]
[347354083,1735725055844,-500.0,0.00019452,3]
[347354085,1735725055853,-287.615158,0.00019452,2]
[347354086,1735725055862,-500.0,0.00019452,3]
[347354087,1735725055872,-500.0,0.00019452,3]
[347354088,1735725055881,-287.615158,0.00019452,2]
[347354089,1735725055892,-500.0,0.00019452,3]
[347354090,1735725055901,-854.83,0.00019452,3]
[347354091,1735725055910,-155.663582,0.00019452,2]
[347354092,1735725055918,-178.61006138,0.00019452,3]
[347354093,1735725055927,-500.0,0.00019452,3]
[347354094,1735725055937,-500.0,0.00019452,3]
[347354095,1735725055946,-500.0,0.00019452,3]
[347354096,1735725055954,-502.67890568,0.00019452,3]
[347354097,1735725055964,-500.0,0.00019452,3]
[347354098,1735725055976,-500.0,0.00019452,3]
[347354099,1735725055985,-500.0,0.00019452,3]
[347354100,1735725055993,-217.47644634,0.00019452,3]
[347354101,1735725056002,-500.0,0.00019452,3]
[347354102,1735725056011,-500.0,0.00019452,3]
[347354103,1735725056021,-737.73,0.00019452,3]
[347354104,1735725056029,-500.0,0.00019452,3]
[347354105,1735725056038,-500.0,0.00019452,3]
[347354106,1735725056051,-500.0,0.00019452,3]
[347354107,1735725056060,-521.51416532,0.00019452,3]
[347354108,1735725056069,-500.0,0.00019452,3]
[347354109,1735725056078,-516.21,0.00019452,3]
[347354110,1735725056087,-151.0,0.00019452,2]
[347354111,1735725056096,-501.00418216,0.00019452,3]
[347354113,1735725056105,-151.0,0.00019452,2]
[347354115,1735725056114,-500.0,0.00019452,3]
[347354117,1735725056123,-500.0,0.00019452,3]
[347354119,1735725056133,-500.0,0.00019452,3]
[347354121,1735725056142,-462.50722586,0.00019452,3]
[347354123,1735725056152,-500.0,0.00019452,3]
[347354125,1735725056161,-500.0,0.00019452,3]
[347354127,1735725056170,-500.0,0.00019452,3]
[347354129,1735725056179,-500.0,0.00019452,3]
[347354131,1735725056188,-502.4196112,0.00019452,3]
[347354133,1735725056197,-500.0,0.00019452,3]
[347354135,1735725056206,-500.0,0.00019452,3]
[347354137,1735725056215,-151.0,0.00019452,2]
[347354139,1735725056224,-151.0,0.00019452,2]
[347354141,1735725056233,-219.391353,0.00019452,2]
[347354143,1735725056242,-219.391353,0.00019452,2]
[347354145,1735725056251,-500.0,0.00019452,3]
[347354147,1735725056261,-500.0,0.00019452,3]
[347354149,1735725056270,-219.391353,0.00019452,2]
[347354150,1735725056279,-219.391353,0.00019452,2]
[347354152,1735725056288,-500.0,0.00019452,3]
[347354154,1735725056297,-500.0,0.00019452,3]
[347354156,1735725056306,-500.0,0.00019452,3]
[347354158,1735725056315,-151.0,0.00019452,2]
[347354160,1735725056324,-500.0,0.00019452,3]
[347354162,1735725056333,-500.0,0.00019452,3]
[347354164,1735725056343,-204.06087272,0.00019452,3]
[347354166,1735725056352,-500.0,0.00019452,3]
[347354169,1735725056361,-500.0,0.00019452,3]
[347354170,1735725056370,-500.0,0.00019452,3]
[347354172,1735725056379,-500.0,0.00019452,3]
[347354174,1735725056389,-500.0,0.00019452,3]
[347354176,1735725056398,-305.22651487,0.00019452,3]
[347354178,1735725056409,-500.0,0.00019452,3]
[347354180,1735725056418,-500.0,0.00019452,3]
[347354182,1735725056428,-500.0,0.00019452,3]
[347354184,1735725056438,-500.0,0.00019452,3]
[347354186,1735725056448,-500.0,0.00019452,3]
[347354188,1735725056458,-500.0,0.00019452,3]
[347354190,1735725056467,-500.0,0.00019452,3]
[347354192,1735725056476,-6254.18,0.00019452,3]
[347354194,1735725056485,-255.31823078,0.00019452,3]
[347354196,1735725056494,-965.48,0.00019452,3]
[347354198,1735725056503,-789.16,0.00019452,3]
[347354200,1735725056512,-500.0,0.00019452,3]
[347354202,1735725056521,-502.22888141,0.00019452,3]
[347354205,1735725056532,-500.0,0.00019452,3]
[347354206,1735725056541,-500.0,0.00019452,3]
[347354208,1735725056550,-500.0,0.00019452,3]
[347354209,1735725056559,-500.0,0.00019452,3]
[347354210,1735725056569,-501.92357877,0.00019452,3]
[347354211,1735725056577,-548.47151543,0.00019452,3]
[347354212,1735725056587,-500.0,0.00019452,3]
[347354213,1735725056596,-500.0,0.00019452,3]
[347354214,1735725056604,-500.0,0.00019452,3]
[347354215,1735725056613,-500.0,0.00019452,3]
[347354216,1735725056623,-639.57725096,0.00019452,3]
[347354217,1735725056632,-500.0,0.00019452,3]
[347354218,1735725056641,-502.57671368,0.00019452,3]
[347354220,1735725056659,-500.0,0.00019452,3]
[347354221,1735725056674,-500.0,0.00019452,3]
[347354222,1735725056683,-500.0,0.00019452,3]
[347354223,1735725056693,-564.06,0.00019452,3]
[347354224,1735725056702,-1592.35,0.00019452,3]
[347354225,1735725056711,-502.1316817,0.00019452,3]
[347354226,1735725056720,-508.58106658,0.00019452,3]
[347354227,1735725056729,-500.0,0.00019452,3]
[347354228,1735725056738,-500.80704121,0.00019452,3]
[347354229,1735725056747,-500.0,0.00019452,3]
[347354230,1735725056757,-500.0,0.00019452,3]
[347354231,1735725056766,-500.0,0.00019452,3]
[347354232,1735725056775,-254.32446667,0.00019452,3]
[347354233,1735725056785,-838.89,0.00019452,3]
[347354234,1735725056794,-517.47956583,0.00019452,3]
[347354235,1735725056803,-500.0,0.00019452,3]
[347354236,1735725056813,-500.0,0.00019452,3]
[347354237,1735725056822,-500.0,0.00019452,3]
[347354238,1735725056831,-1860.01,0.00019452,3]
[347354239,1735725056840,-500.0,0.00019452,3]
[347354240,1735725056850,-324.57680693,0.00019452,3]
[347354241,1735725056859,-500.0,0.00019452,3]
[347354242,1735725056868,-500.0,0.00019452,3]
[347354243,1735725056877,-500.0,0.00019452,3]
[347354244,1735725056886,-500.0,0.00019452,3]
[347354245,1735725056895,-500.0,0.00019452,3]
[347354246,1735725056905,-500.0,0.00019452,3]
[347354247,1735725056914,-500.0,0.00019452,3]
[347354248,1735725056923,-500.0,0.00019452,3]
[347354249,1735725056932,-500.0,0.00019452,3]
[347354250,1735725056941,-4953.81,0.00019452,3]
[347354251,1735725056950,-500.0,0.00019452,3]
[347354252,1735725056959,-500.0,0.00019452,3]
[347354253,1735725056969,-566.358095,0.00019452,3]
[347354254,1735725056978,-500.0,0.00019452,3]
[347354255,1735725056987,-1368.56,0.00019452,3]
[347354256,1735725056996,-500.0,0.00019452,3]
[347354257,1735725057005,-500.0,0.00019452,3]
[347354258,1735725057014,-500.0,0.00019452,3]
[347354259,1735725057023,-811.4,0.00019452,3]
[347354260,1735725057033,-500.0,0.00019452,3]
[347354261,1735725057042,-500.0,0.00019452,3]
[347354262,1735725057051,-500.0,0.00019452,3]
[347354263,1735725057061,-500.0,0.00019452,3]
[347354264,1735725057069,-500.0,0.00019452,3]
[347354265,1735725057078,-500.61634377,0.00019452,3]
[347354266,1735725057087,-500.0,0.00019452,3]
[347354267,1735725057096,-500.0,0.00019452,3]
[347354268,1735725057106,-504.39,0.00019452,3]
[347354269,1735725057115,-500.0,0.00019452,3]
[347354270,1735725057124,-500.0,0.00019452,3]
[347354271,1735725057133,-500.0,0.00019452,3]
[347354272,1735725057142,-502.57760747,0.00019452,3]
[347354273,1735725057152,-500.0,0.00019452,3]
[347354274,1735725057161,-1440.44,0.00019452,3]
[347354275,1735725057171,-506.838918,0.00019452,3]
[347354276,1735725057180,-500.0,0.00019452,3]
[347354277,1735725057190,-500.0,0.00019452,3]
[347354278,1735725057199,-500.0,0.00019452,3]
[347354279,1735725057208,-503.21424572,0.00019452,3]
[347354280,1735725057217,-1590.49,0.00019452,3]
[347354281,1735725057226,-2016.05,0.00019452,3]
[347354282,1735725057236,-1029.85,0.00019452,3]
[347354283,1735725057245,-500.0,0.00019452,3]
[347354284,1735725057254,-500.0,0.00019452,3]
[347354285,1735725057263,-500.0,0.00019452,3]
[347354286,1735725057272,-500.0,0.00019452,3]
[347354287,1735725057282,-500.0,0.00019452,3]
[347354288,1735725057291,-914.56,0.00019452,3]
[347354289,1735725057300,-1066.46,0.00019452,3]
[347354290,1735725057309,-1046.5,0.00019452,3]
[347354291,1735725057319,-500.0,0.00019452,3]
[347354292,1735725057328,-501.47771127,0.00019452,3]
[347354293,1735725057337,-500.0,0.00019452,3]
[347354294,1735725057347,-500.0,0.00019452,3]
[347354295,1735725057356,-1125.1,0.00019452,3]
[347354296,1735725057365,-1088.85,0.00019452,3]
[347354297,1735725057374,-701.66,0.00019452,3]
[347354298,1735725057383,-500.0,0.00019452,3]
[347354299,1735725057392,-520.53,0.00019452,3]
[347354300,1735725057403,-504.80506325,0.00019452,3]
[347354301,1735725057412,-500.0,0.00019452,3]
[347354302,1735725057421,-500.0,0.00019452,3]
[347354303,1735725057430,-500.0,0.00019452,3]
[347354304,1735725057440,-1119.02,0.00019452,3]
[347354305,1735725057449,-920.8,0.00019452,3]
[347354306,1735725057458,-500.0,0.00019452,3]
[347354307,1735725057468,-940.11,0.00019452,3]
[347354308,1735725057477,-500.0,0.00019452,3]
[347354309,1735725057486,-500.0,0.00019452,3]
[347354310,1735725057495,-500.0,0.00019452,3]
[347354311,1735725057505,-500.0,0.00019452,3]
[347354312,1735725057514,-895.21,0.00019452,3]
[347354313,1735725057524,-737.17,0.00019452,3]
[347354314,1735725057534,-501.62156979,0.00019452,3]
[347354315,1735725057544,-500.0,0.00019452,3]
[347354316,1735725057553,-976.49,0.00019452,3]
[347354317,1735725057562,-151.0,0.00019452,2]
[347354318,1735725057572,-151.0,0.00019452,2]
[347354319,1735725057582,-151.0,0.00019452,2]
[347354320,1735725057591,-502.01400119,0.00019452,3]
[347354321,1735725057600,-990.0,0.00019452,3]
[347354322,1735725057609,-500.0,0.00019452,3]
[347354323,1735725057618,-500.0,0.00019452,3]
[347354324,1735725057627,-500.0,0.00019452,3]
[347354325,1735725057636,-500.0,0.00019452,3]
[347354326,1735725057645,-3626.2,0.00019452,3]
[347354327,1735725057655,-500.0,0.00019452,3]
[347354328,1735725057664,-500.0,0.00019452,3]
[347354329,1735725057673,-500.0,0.00019452,3]
[347354330,1735725057682,-500.0,0.00019452,3]
[347354331,1735725057692,-640.12,0.00019452,3]
[347354332,1735725057701,-500.0,0.00019452,3]
[347354333,1735725057710,-995.64,0.00019452,3]
[347354334,1735725057719,-616.31369535,0.00019452,3]
[347354335,1735725057729,-630.06,0.00019452,3]
[347354336,1735725057738,-500.0,0.00019452,3]
[347354337,1735725057748,-500.0,0.00019452,3]
[347354338,1735725057758,-565.1,0.00019452,3]
[347354339,1735725057863,-500.0,0.00019452,3]
[347354340,1735725057873,-621.76584011,0.00019452,3]
[347354341,1735725057882,-362.7829863,0.00019452,3]
[347354342,1735725057891,-500.99275447,0.00019452,3]
[347354343,1735725057900,-1339.1,0.00019452,3]
[347354344,1735725057910,-500.0,0.00019452,3]
[347354345,1735725057919,-500.0,0.00019452,3]
[347354346,1735725057928,-500.0,0.00019452,3]
[347354347,1735725057937,-500.0,0.00019452,3]
[347354348,1735725057946,-560.75358299,0.00019452,3]
[347354349,1735725057955,-500.0,0.00019452,3]
[347354350,1735725057965,-500.0,0.00019452,3]
[347354351,1735725057981,-1118.94,0.00019452,3]
[347354352,1735725057991,-2123.82,0.00019452,3]
[347354353,1735725058001,-976.4,0.00019452,3]
[347354354,1735725058012,-500.0,0.00019452,3]
[347354355,1735725058021,-502.83779748,0.00019452,3]
[347354356,1735725058030,-7258.44,0.00019452,3]
[347354357,1735725058039,-2709.39,0.00019452,3]
[347354358,1735725058049,-648.71,0.00019452,3]
[347354359,1735725058059,-500.0,0.00019452,3]
[347354360,1735725058068,-983.62,0.00019452,3]
[347354361,1735725058077,-500.0,0.00019452,3]
[347354362,1735725058086,-715.51,0.00019452,3]
[347354363,1735725058095,-500.0,0.00019452,3]
[347354364,1735725058105,-500.0,0.00019452,3]
[347354365,1735725058114,-500.0,0.00019452,3]
[347354366,1735725058123,-52149.91,0.00019452,3]
[347354367,1735725058133,-500.0,0.00019452,3]
[347354368,1735725058142,-500.0,0.00019452,3]
[347354369,1735725058152,-3016.01,0.00019452,3]
[347354370,1735725058161,-500.0,0.00019452,3]
[347354371,1735725058170,-500.0,0.00019452,3]
[347354372,1735725058179,-898.88,0.00019452,3]
[347354373,1735725058188,-500.0,0.00019452,3]
[347354374,1735725058197,-500.0,0.00019452,3]
[347354375,1735725058205,-2298.81,0.00019452,3]
[347354376,1735725058215,-500.0,0.00019452,3]
[347354377,1735725058224,-500.0,0.00019452,3]
[347354378,1735725058233,-500.0,0.00019452,3]
[347354379,1735725058242,-500.0,0.00019452,3]
[347354380,1735725058251,-151.0,0.00019452,2]
[347354381,1735725058260,-500.0,0.00019452,3]
[347354382,1735725058269,-500.67761641,0.00019452,3]
[347354383,1735725058278,-1485.17,0.00019452,3]
[347354384,1735725058287,-500.0,0.00019452,3]
[347354385,1735725058296,-500.0,0.00019452,3]
[347354386,1735725058305,-500.0,0.00019452,3]
[347354387,1735725058315,-500.5797417,0.00019452,3]
[347354388,1735725058324,-500.0,0.00019452,3]
[347354389,1735725058333,-500.0,0.00019452,3]
[347354390,1735725058342,-500.0,0.00019452,3]
[347354391,1735725058351,-1715.31,0.00019452,3]
[347354392,1735725058360,-500.0,0.00019452,3]
[347354393,1735725058369,-500.0,0.00019452,3]
[347354394,1735725058378,-500.0,0.00019452,3]
[347354395,1735725058387,-500.0,0.00019452,3]
[347354396,1735725058396,-500.0,0.00019452,3]
[347354397,1735725058405,-1947.28,0.00019452,3]
[347354398,1735725058414,-514.25,0.00019452,3]
[347354399,1735725058423,-500.0,0.00019452,3]
[347354400,1735725058432,-500.0,0.00019452,3]
[347354401,1735725058441,-500.0,0.00019452,3]
[347354402,1735725058450,-500.0,0.00019452,3]
[347354403,1735725058459,-500.0,0.00019452,3]
[347354404,1735725058468,-500.0,0.00019452,3]
[347354405,1735725058478,-500.0,0.00019452,3]
[347354406,1735725058487,-500.0,0.00019452,3]
[347354407,1735725058496,-500.0,0.00019452,3]
[347354408,1735725058505,-4949.5,0.00019452,3]
[347354409,1735725058515,-500.34686772,0.00019452,3]
[347354410,1735725058524,-505.24710796,0.00019452,3]
[347354411,1735725058533,-1218.72,0.00019452,3]
[347354412,1735725058543,-1418.89,0.00019452,3]
[347354413,1735725058553,-395.85028878,0.00019452,3]
[347354414,1735725058562,-500.0,0.00019452,3]
[347354415,1735725058571,-500.0,0.00019452,3]
[347354416,1735725058580,-500.0,0.00019452,3]
[347354417,1735725058589,-501.84941109,0.00019452,3]
[347354418,1735725058600,-500.0,0.00019452,3]
[347354419,1735725058610,-638.64,0.00019452,3]
[347354420,1735725058619,-1288.26,0.00019452,3]
[347354421,1735725058628,-500.0,0.00019452,3]
[347354422,1735725058637,-500.0,0.00019452,3]
[347354423,1735725058646,-501.74619597,0.00019452,3]
[347354424,1735725058656,-151.0,0.00019452,2]
[347354425,1735725058665,-151.0,0.00019452,2]
[347354426,1735725058674,-500.0,0.00019452,3]
[347354427,1735725058684,-500.0,0.00019452,3]
[347354428,1735725058693,-500.0,0.00019452,3]
[347354429,1735725058702,-691.27,0.00019452,3]
[347354430,1735725058711,-500.0,0.00019452,3]
[347354431,1735725058720,-500.0,0.00019452,3]
[347354432,1735725058730,-500.0,0.00019452,3]
[347354433,1735725058739,-502.32264664,0.00019452,3]
[347354434,1735725058747,-500.0,0.00019452,3]
[347354435,1735725058757,-523.40537884,0.00019452,3]
[347354436,1735725058766,-500.0,0.00019452,3]
[347354437,1735725058775,-2801.82,0.00019452,3]
[347354438,1735725058784,-884.89,0.00019452,3]
[347354439,1735725058793,-506.38047788,0.00019452,3]
[347354440,1735725058802,-500.0,0.00019452,3]
[347354441,1735725058812,-503.65567999,0.00019452,3]
[347354442,1735725058821,-843.27,0.00019452,3]
[347354443,1735725058830,-1791.82,0.00019452,3]
[347354444,1735725058839,-500.0,0.00019452,3]
[347354445,1735725058848,-500.0,0.00019452,3]
[347354446,1735725058857,-500.0,0.00019452,3]
[347354447,1735725058866,-500.0,0.00019452,3]
[347354448,1735725058875,-500.0,0.00019452,3]
[347354449,1735725058884,-564.12943436,0.00019452,3]
[347354450,1735725058893,-1031.16,0.00019452,3]
[347354451,1735725058903,-500.0,0.00019452,3]
[347354452,1735725058912,-500.0,0.00019452,3]
[347354453,1735725058921,-502.68993226,0.00019452,3]
[347354454,1735725058930,-500.0,0.00019452,3]
[347354455,1735725058940,-500.0,0.00019452,3]
[347354456,1735725058949,-1672.9,0.00019452,3]
[347354457,1735725058959,-4372.17,0.00019452,3]
[347354458,1735725058969,-500.0,0.00019452,3]
[347354459,1735725058980,-500.0,0.00019452,3]
[347354460,1735725058989,-500.0,0.00019452,3]
[347354461,1735725058998,-500.0,0.00019452,3]
[347354462,1735725059007,-590.03,0.00019452,3]
[347354463,1735725059016,-500.0,0.00019452,3]
[347354464,1735725059025,-508.53909524,0.00019452,3]
[347354465,1735725059034,-431.29385124,0.00019452,3]
[347354466,1735725059044,-2771.02,0.00019452,3]
[347354467,1735725059053,-502.42158454,0.00019452,3]
[347354468,1735725059062,-500.0,0.00019452,3]
[347354469,1735725059071,-500.0,0.00019452,3]
[347354470,1735725059080,-500.0,0.00019452,3]
[347354471,1735725059089,-500.0,0.00019452,3]
[347354472,1735725059098,-500.0,0.00019452,3]
[347354473,1735725059107,-500.0,0.00019452,3]
[347354474,1735725059117,-500.0,0.00019452,3]
[347354475,1735725059126,-500.0,0.00019452,3]
[347354476,1735725059135,-500.0,0.00019452,3]
[347354477,1735725059144,-500.0,0.00019452,3]
[347354478,1735725059154,-500.0,0.00019452,3]
[347354479,1735725059162,-500.0,0.00019452,3]
[347354480,1735725059171,-500.0,0.00019452,3]
[347354481,1735725059180,-1748.46,0.00019452,3]
[347354482,1735725059190,-500.0,0.00019452,3]
[347354483,1735725059199,-500.0,0.00019473,2]
[347354484,1735725059208,-566.66221462,0.00019473,2]
[347354485,1735725059217,-500.0,0.00019473,2]
[347354486,1735725059226,-500.0,0.00019473,2]
[347354487,1735725059235,-500.0,0.00019473,2]